bitfinex/quotes_SOLUSD_20220216
["timestamp","ask_amount","ask_price","bid_price","bid_amount"]
[1645053924091,0.05494084,102.97,102.93,146.9367637]
[1645053924493,0.05494084,102.97,102.93,49.6767637]
[1645053924688,0.05494084,102.97,102.94,4.856]
[1645053924889,0.05494084,102.97,102.95,14.5629]
[1645053925692,0.05494084,102.97,102.96,2.12445709]
[1645053926087,0.05494084,102.97,102.96,16.68745709]
[1645053928994,0.00494084,102.97,102.96,16.68745709]
[1645053930594,0.00494084,102.97,102.96,22.43345709]
[1645053930995,0.00494084,102.97,102.96,36.42345709]
[1645053933095,0.00494084,102.97,102.96,41.27945709]
[1645053934401,0.00494084,102.97,102.96,36.42345709]
[1645053934600,0.11062628,102.99,102.96,135.68430572]
[1645053934799,0.5131515,103.02,102.99,0.21773016]
[1645053934998,1.29769118,103.02,102.99,0.21773016]
[1645053935498,1.29769118,103.02,102.99,14.20773016]
[1645053935698,1.29769118,103.02,103.0,1.87734932]
[1645053939706,0.42353102,103.04,103.0,1.87734932]
[1645053940707,0.42353102,103.04,103.0,16.43504932]
[1645053941105,0.42353102,103.04,103.0,30.42504932]
[1645053954243,0.42353102,103.04,103.0,15.86734932]
[1645053955247,0.42353102,103.04,103.0,1.87734932]
[1645053964757,0.42353102,103.04,103.0,16.43504932]
[1645053965955,0.42353102,103.04,103.0,1.87734932]
[1645053967354,0.42353102,103.04,103.0,16.43464932]
[1645053969060,0.42353102,103.04,103.01,13.99]
[1645053969263,0.42353102,103.04,103.01,28.5463]
[1645053969661,0.42353102,103.04,103.02,1.30669038]
[1645053972863,1.15485065,103.03,103.02,1.30669038]
[1645053973267,0.42353102,103.04,103.02,1.30669038]
[1645053982494,0.00140382,103.05,103.02,1.30669038]
[1645053982695,1.07445762,103.06,103.03,125.8038]
[1645053982696,0.42803204,103.06,103.03,125.8038]
[1645053982894,0.0033036,103.06,103.03,130.6558]
[1645053983095,0.0033036,103.06,103.03,149.6134241]
[1645053983301,0.0033036,103.06,103.03,144.7614241]
[1645053983998,0.0033036,103.06,103.04,22.5778]
[1645053984196,0.0033036,103.06,103.05,28.54]
[1645053985500,0.0033036,103.06,103.05,33.391]
[1645053986301,0.0033036,103.06,103.05,130.671]
[1645053986701,0.0033036,103.06,103.05,82.001]
[1645053986902,0.53962476,103.14,103.05,431.2886241]
[1645053987103,0.4283806,103.11,103.07,97.26]
[1645053987402,0.53962476,103.14,103.09,97.26]
[1645053987602,0.53962476,103.14,103.1,18.839]
[1645053987903,0.53962476,103.14,103.11,1.30485795]
[1645053988105,0.0089666,103.12,103.11,15.29485795]
[1645053988904,0.0089666,103.12,103.11,29.83635795]
[1645053989505,0.0089666,103.12,103.11,127.09635795]
[1645053991508,0.0089666,103.12,103.11,29.85635795]
[1645053991909,0.4363662,103.14,103.11,29.85635795]
[1645053993814,0.4363662,103.14,103.11,127.11635795]
[1645053994215,0.4363662,103.14,103.12,0.25]
[1645053994413,0.4363662,103.14,103.13,13.99]
[1645053994615,0.4363662,103.14,103.13,15.86734932]
[1645053995015,0.4363662,103.14,103.13,1.87734932]
[1645053996517,0.4363662,103.14,103.13,1.89734932]
[1645054003623,0.4363662,103.14,103.13,1.87734932]
[1645054005228,0.0063662,103.14,103.13,1.87734932]
[1645054005427,0.4703331,103.16,103.14,0.2436338]
[1645054005626,1.09236202,103.16,103.14,0.2436338]
[1645054005825,1.09236202,103.16,103.15,0.34915407]
[1645054006628,2.24721267,103.16,103.15,0.34915407]
[1645054006853,1.09236202,103.16,103.15,0.34915407]
[1645054007258,0.00235362,103.16,103.15,0.34915407]
[1645054008756,0.00235362,103.16,103.15,14.33915407]
[1645054009455,0.00235362,103.16,103.15,28.87475407]
[1645054009856,0.00235362,103.16,103.15,14.33915407]
[1645054010258,0.00235362,103.16,103.15,0.34915407]
[1645054011465,1.15720427,103.16,103.13,0.25]
[1645054011862,1.15720427,103.16,103.15,0.02]
[1645054012463,1.15485065,103.16,103.15,0.02]
[1645054012664,1.57248023,103.16,103.15,0.02]
[1645054018463,0.41762958,103.16,103.15,1.89734932]
[1645054021969,0.41762958,103.16,103.15,1.87734932]
[1645054023576,1.57248023,103.16,103.13,14.26]
[1645054023773,1.57248023,103.16,103.13,0.27]
[1645054026072,1.57248023,103.16,103.14,1.87734932]
[1645054028177,1.57248023,103.16,103.13,0.27]
[1645054030776,1.57248023,103.16,103.13,0.02]
[1645054031377,4.847,103.15,103.13,0.02]
[1645054031577,0.41762958,103.16,103.13,0.02]
[1645054031982,14.96392958,103.16,103.08,14.5459]
[1645054032279,4.848,103.15,103.12,0.02]
[1645054032480,23.7497,103.15,103.12,0.02]
[1645054032680,24.16732958,103.15,103.12,0.02]
[1645054033091,38.71482958,103.15,103.12,0.02]
[1645054034982,19.397,103.14,103.12,0.02]
[1645054035189,14.549,103.14,103.12,0.02]
[1645054035386,15.92590637,103.14,103.12,0.02]
[1645054035584,1.15485065,103.13,103.12,0.02]
[1645054035786,24.31235065,103.13,103.12,0.02]
[1645054042208,24.31235065,103.13,103.08,14.5665]
[1645054045615,1.15485065,103.13,103.08,28.5565]
[1645054045810,1.15485065,103.13,103.08,128.02877552]
[1645054046010,1.15485065,103.13,103.08,144.77412234]
[1645054046213,0.41762958,103.14,103.08,144.77412234]
[1645054047214,0.41762958,103.14,103.09,145.85]
[1645054047413,0.41762958,103.14,103.1,125.7912]
[1645054048814,0.41762958,103.14,103.1,52.9101]
[1645054050616,0.41762958,103.14,103.1,150.1701]
[1645054052318,0.41762958,103.14,103.11,2.21227552]
[1645054052519,0.41762958,103.14,103.12,15.57087355]
[1645054054225,1.15485065,103.13,103.12,15.57087355]
[1645054054420,1.15485065,103.13,103.12,14.5407]
[1645054055023,0.41762958,103.14,103.12,14.5407]
[1645054057235,0.41762958,103.14,103.13,1.02835446]
[1645054057625,1.57248023,103.14,103.12,0.02]
[1645054067758,1.57248023,103.14,103.09,14.8154]
[1645054071158,1.57248023,103.14,103.09,14.5654]
[1645054072459,1.57248023,103.14,103.1,0.25]
[1645054072860,1.57248023,103.14,103.09,14.5654]
[1645054073861,1.57248023,103.14,103.09,19.4134]
[1645054074368,1.57248023,103.14,103.1,14.794]
[1645054077866,1.57248023,103.14,103.1,14.814]
[1645054078266,0.41762958,103.14,103.1,14.814]
[1645054078665,0.41762958,103.14,103.1,39.1773]
[1645054078865,0.41762958,103.14,103.1,39.1573]
[1645054081269,0.41762958,103.14,103.1,53.1473]
[1645054083983,0.41762958,103.14,103.1,52.8973]
[1645054085376,0.41762958,103.14,103.11,0.25]
[1645054085976,0.41762958,103.14,103.12,1.1300596]
[1645054086177,1.15485065,103.13,103.12,1.1300596]
[1645054086375,0.41762958,103.14,103.12,1.1300596]
[1645054091681,0.41762958,103.14,103.12,0.88295183]
[1645054092277,1.40195842,103.13,103.12,0.88295183]
[1645054093183,1.40195842,103.13,103.12,0.90295183]
[1645054094680,1.40195842,103.13,103.12,0.02]
[1645054098185,2.77886479,103.13,103.12,0.02]
[1645054098584,1.40195842,103.13,103.12,0.02]
[1645054099491,25.03692958,103.14,103.12,0.91530722]
[1645054100295,25.03692958,103.14,103.12,0.02]
[1645054102725,24.53692958,103.14,103.12,0.02]
[1645054102928,24.53692958,103.14,103.13,0.89522039]
[1645054103127,25.938888,103.14,103.13,0.89522039]
[1645054103331,25.938888,103.14,103.09,14.8154]
[1645054104432,27.31579437,103.14,103.09,14.8154]
[1645054105034,27.31579437,103.14,103.09,0.27]
[1645054106533,27.31579437,103.14,103.09,0.02]
[1645054106734,27.31579437,103.14,103.09,0.27]
[1645054107537,27.31579437,103.14,103.09,0.02]
[1645054108539,41.86479437,103.14,103.09,0.02]
[1645054109639,42.53708115,103.14,103.09,0.02]
[1645054113343,15.92720637,103.13,103.08,0.02]
[1645054113646,16.59949315,103.13,103.08,0.02]
[1645054114646,23.2509,103.12,103.08,0.02]
[1645054115447,23.92318678,103.12,103.08,0.02]
[1645054120963,0.67228678,103.12,103.08,0.02]
[1645054123565,0.67228678,103.12,103.07,0.27]
[1645054124165,0.67228678,103.12,103.07,0.02]
[1645054125863,0.67228678,103.12,103.07,6.02]
[1645054126060,0.67228678,103.12,103.07,0.02]
[1645054127783,15.22408678,103.12,103.07,0.02]
[1645054128080,16.60099315,103.12,103.07,0.02]
[1645054128685,15.22408678,103.12,103.07,0.02]
[1645054129084,20.07308678,103.12,103.07,0.02]
[1645054129282,21.44999315,103.12,103.07,0.02]
[1645054129483,16.60099315,103.12,103.07,0.02]
[1645054131484,24.9062,103.11,103.07,0.02]
[1645054131682,25.57848678,103.11,103.07,0.02]
[1645054132185,25.33137901,103.11,103.07,0.02]
[1645054133585,25.33137901,103.11,103.05,0.27]
[1645054133787,25.33137901,103.11,103.05,5.12]
[1645054134805,39.88447901,103.11,103.05,0.27]
[1645054135801,41.33613185,103.11,103.05,0.27]
[1645054136699,41.33613185,103.11,103.05,6.27]
[1645054137903,41.33613185,103.11,103.05,0.27]
[1645054139202,41.33613185,103.11,103.05,5.119]
[1645054142502,41.33613185,103.11,103.05,4.869]
[1645054143804,41.33613185,103.11,103.05,4.849]
[1645054144806,41.33613185,103.11,103.04,37.41]
[1645054145206,41.33613185,103.11,103.04,22.8579]
[1645054147411,42.71303822,103.11,103.04,22.8579]
[1645054147813,47.56203822,103.11,103.04,22.8579]
[1645054148411,1.37690637,103.1,103.04,22.8579]
[1645054148612,15.93190637,103.1,103.04,22.8579]
[1645054148811,17.38355921,103.1,103.04,22.8579]
[1645054150615,22.23455921,103.1,103.04,22.8579]
[1645054152616,17.38355921,103.1,103.04,22.8579]
[1645054153335,17.38355921,103.1,103.04,0.02]
[1645054153535,22.23455921,103.1,103.04,0.02]
[1645054153737,14.5585,103.08,103.04,0.02]
[1645054153934,14.5585,103.08,103.03,0.02]
[1645054154338,22.7691,103.07,103.03,0.02]
[1645054154937,24.22075284,103.07,103.03,0.02]
[1645054155840,38.77945284,103.07,103.03,0.02]
[1645054161342,16.01035284,103.07,103.03,0.02]
[1645054164145,16.01035284,103.07,103.01,23.3602]
[1645054169252,16.01035284,103.07,103.01,23.3402]
[1645054172757,16.01035284,103.07,102.99,23.7194]
[1645054172957,17.38725921,103.07,102.99,23.7194]
[1645054173360,16.01035284,103.07,102.99,23.7194]
[1645054173559,16.01035284,103.07,103.0,24.4629]
[1645054173761,16.01035284,103.07,103.0,29.3149]
[1645054174961,16.01035284,103.07,103.0,24.4629]
[1645054175159,17.38725921,103.07,103.0,24.4629]
[1645054175360,16.01035284,103.07,103.0,24.4629]
[1645054176562,30.61785284,103.07,103.0,24.4629]
[1645054180272,30.61785284,103.07,103.0,29.3149]
[1645054181065,31.99475921,103.07,103.0,29.3149]
[1645054183065,31.99475921,103.07,103.0,24.4629]
[1645054183469,17.38725921,103.07,103.0,24.4629]
[1645054183869,1.45165284,103.07,103.01,10.852]
[1645054184070,1.45165284,103.07,103.02,22.5793]
[1645054184268,1.45165284,103.07,103.02,28.3923]
[1645054184670,1.45165284,103.07,103.03,0.25]
[1645054184869,1.45165284,103.07,103.02,22.5793]
[1645054185270,2.03172492,103.07,103.03,0.25]
[1645054186079,2.03172492,103.07,103.02,22.5793]
[1645054186272,2.03172492,103.07,103.03,5.102]
[1645054186470,2.03172492,103.07,103.03,0.25]
[1645054190075,2.03172492,103.07,103.02,22.5793]
[1645054190779,2.03172492,103.07,103.03,0.25]
[1645054194604,2.03172492,103.07,103.02,22.5793]
[1645054199313,16.59072492,103.07,102.99,42.5614]
[1645054199511,19.13184896,103.07,103.0,23.4131]
[1645054199712,25.36075533,103.07,103.0,23.4131]
[1645054200212,25.36075533,103.07,102.98,13.99]
[1645054200413,1.37690637,103.06,102.99,4.853]
[1645054200613,14.5635,103.04,102.97,28.2651]
[1645054200816,14.5635,103.04,102.97,23.4131]
[1645054201412,16.59522492,103.04,102.97,23.4131]
[1645054202314,16.59522492,103.04,102.98,0.25]
[1645054202514,16.59522492,103.04,102.98,5.103]
[1645054202713,16.59522492,103.04,102.98,11.103]
[1645054203318,16.59522492,103.04,102.98,10.853]
[1645054205617,2.03172492,103.04,102.99,97.51]
[1645054205821,2.03172492,103.04,103.0,116.103]
[1645054206017,2.03172492,103.04,103.0,132.84061904]
[1645054206220,2.03172492,103.04,103.0,135.05289454]
[1645054206820,2.03172492,103.04,103.01,14.5547]
[1645054207021,2.03172492,103.04,103.02,4.853]
[1645054207320,2.03172492,103.04,103.03,0.95619097]
[1645054208425,2.03172492,103.04,103.03,15.51059097]
[1645054212723,2.03172492,103.04,103.03,15.2634832]
[1645054214423,2.03172492,103.04,103.03,15.5134832]
[1645054218737,2.03172492,103.04,103.03,15.2634832]
[1645054220229,2.03172492,103.04,103.03,15.5134832]
[1645054221437,2.03172492,103.04,103.03,15.2634832]
[1645054221631,2.03172492,103.04,103.03,0.7090832]
[1645054222833,2.03172492,103.04,103.03,0.9590832]
[1645054224537,3.68079111,103.04,103.03,0.25]
[1645054226239,2.03172492,103.04,103.03,1.63313378]
[1645054230646,2.03172492,103.04,103.03,1.38313378]
[1645054231447,3.68079111,103.04,103.01,39.0568]
[1645054231649,3.68079111,103.04,103.02,1.38313378]
[1645054231946,3.68079111,103.04,103.01,24.8059]
[1645054236066,3.68079111,103.04,102.99,14.5599]
[1645054236867,3.68079111,103.04,102.97,52.8929]
[1645054237068,3.68079111,103.04,102.98,11.104]
[1645054238366,3.68079111,103.04,102.98,25.6655]
[1645054238565,3.68079111,103.04,102.98,19.6655]
[1645054239374,3.68079111,103.04,102.98,14.8115]
[1645054240270,3.68079111,103.04,102.98,19.6645]
[1645054241478,3.68079111,103.04,102.98,14.8115]
[1645054247479,3.68079111,103.04,102.98,19.6645]
[1645054248784,3.68079111,103.04,102.98,14.8115]
[1645054259291,3.68079111,103.04,102.98,19.6645]
[1645054260294,18.24379111,103.04,102.98,0.25]
[1645054260491,23.3764,103.03,102.98,0.25]
[1645054260992,25.40812492,103.03,102.98,0.25]
[1645054262798,25.40812492,103.03,102.97,24.3414]
[1645054262995,39.97262492,103.03,102.97,24.3414]
[1645054263196,41.34953129,103.03,102.97,24.3414]
[1645054264297,138.60953129,103.03,102.96,10.14184053]
[1645054264496,14.5705,103.0,102.9,48.17256553]
[1645054264697,29.3289,102.99,102.88,102.114]
[1645054264900,1.37690637,102.98,102.89,24.4516]
[1645054265097,4.857,102.97,102.89,24.4516]
[1645054265499,6.23390637,102.97,102.89,24.4516]
[1645054265701,4.857,102.97,102.89,24.4516]
[1645054265897,14.5746,102.96,102.89,24.4516]
[1645054266302,14.5746,102.96,102.85,104.24659431]
[1645054266500,4.858,102.95,102.89,0.25]
[1645054266702,7.88,102.95,102.89,0.25]
[1645054266998,7.88,102.95,102.87,4.858]
[1645054267497,14.5779,102.94,102.87,4.858]
[1645054269002,14.5779,102.94,102.86,14.5767]
[1645054270306,18.848,102.95,102.85,40.74089889]
[1645054270707,116.108,102.95,102.85,16.79129889]
[1645054271207,116.108,102.95,102.86,0.25]
[1645054271511,130.6892,102.95,102.86,0.25]
[1645054273611,18.848,102.95,102.86,0.25]
[1645054273811,13.99,102.95,102.86,0.25]
[1645054274813,13.99,102.95,102.86,5.108]
[1645054275013,13.99,102.95,102.86,11.108]
[1645054275212,13.99,102.95,102.86,5.108]
[1645054277034,18.848,102.95,102.86,0.25]
[1645054277234,18.848,102.95,102.86,14.8295]
[1645054277439,13.99,102.95,102.87,4.858]
[1645054277638,4.858,102.98,102.87,4.858]
[1645054277837,24.9869,102.99,102.87,4.858]
[1645054278037,24.9869,102.99,102.88,99.47049889]
[1645054278236,24.9869,102.99,102.89,4.857]
[1645054278439,0.58007208,103.01,102.91,14.5712]
[1645054278747,0.58007208,103.01,102.92,4.856]
[1645054278939,0.58007208,103.01,102.91,97.26]
[1645054279147,0.58007208,103.01,102.92,7.06649889]
[1645054279537,0.58007208,103.01,102.92,2.21049889]
[1645054279737,0.58007208,103.01,102.93,4.856]
[1645054280337,0.58007208,103.01,102.93,19.4243]
[1645054281138,0.58007208,103.01,102.93,14.5683]
[1645054282143,0.58007208,103.01,102.92,60.9412]
[1645054282345,5.43607208,103.01,102.92,60.9412]
[1645054284440,0.58007208,103.01,102.92,60.9412]
[1645054288048,5.43607208,103.01,102.92,60.9412]
[1645054288451,29.24457208,103.01,102.92,60.9412]
[1645054288848,126.50457208,103.01,102.92,60.9412]
[1645054289049,134.71457208,103.01,102.91,14.5725]
[1645054289350,163.27747208,103.01,102.91,14.5725]
[1645054289547,164.65437845,103.01,102.91,14.5725]
[1645054290146,67.39437845,103.01,102.91,14.5725]
[1645054290447,57.80747208,103.01,102.91,14.5725]
[1645054290646,59.18437845,103.01,102.91,14.5725]
[1645054290845,39.75547845,103.01,102.92,4.856]
[1645054291246,39.75547845,103.01,102.92,19.4259]
[1645054291749,24.38857208,103.01,102.92,19.4259]
[1645054292549,29.24457208,103.01,102.92,14.5699]
[1645054293049,30.62147845,103.01,102.92,14.5699]
[1645054294749,25.76547845,103.01,102.92,14.5699]
[1645054295149,24.38857208,103.01,102.92,14.5699]
[1645054295348,40.33667845,103.01,102.92,14.5699]
[1645054295548,38.95977208,103.01,102.92,14.5699]
[1645054296749,24.38857208,103.01,102.92,14.5699]
[1645054297152,24.38857208,103.01,102.91,48.5607]
[1645054297153,24.38857208,103.01,102.93,19.4246]
[1645054297348,24.38857208,103.01,102.93,14.5686]
[1645054297551,29.24357208,103.01,102.93,14.5686]
[1645054298552,24.38857208,103.01,102.93,14.5686]
[1645054300956,29.24357208,103.01,102.93,14.5686]
[1645054301960,24.38857208,103.01,102.93,19.4236]
[1645054302860,24.38857208,103.01,102.93,14.5686]
[1645054303759,121.64857208,103.01,102.92,23.6861]
[1645054303960,4.856,103.0,102.92,23.6861]
[1645054304160,13.99,102.99,102.92,23.6861]
[1645054305163,13.99,102.99,102.91,14.5711]
[1645054305862,38.3288,102.99,102.91,14.5711]
[1645054306063,52.9028,102.99,102.9,24.4754]
[1645054306267,52.9028,102.99,102.91,0.25]
[1645054306668,52.9028,102.99,102.9,24.4754]
[1645054307267,54.27970637,102.99,102.9,24.4754]
[1645054307471,1.37690637,102.98,102.9,24.4754]
[1645054307666,1.37690637,102.98,102.9,29.3324]
[1645054307965,52.9028,102.99,102.91,0.25]
[1645054307966,54.27970637,102.99,102.91,0.25]
[1645054308166,1.37690637,102.98,102.9,29.3324]
[1645054308367,1.37690637,102.98,102.9,24.4754]
[1645054309373,1.37690637,102.98,102.91,0.25]
[1645054309671,15.95250637,102.98,102.9,24.4754]
[1645054310696,113.21250637,102.98,102.89,28.8544]
[1645054310900,72.9318,102.99,102.89,23.9974]
[1645054310901,117.48390637,102.97,102.89,23.9974]
[1645054311100,127.20450637,102.97,102.87,14.5767]
[1645054311298,126.3131,102.96,102.87,14.5767]
[1645054311499,140.3031,102.96,102.87,14.5767]
[1645054311896,140.3031,102.96,102.86,49.44365763]
[1645054312100,141.68000637,102.96,102.87,0.25]
[1645054312296,141.68000637,102.96,102.86,49.44365763]
[1645054312496,156.25900637,102.96,102.86,24.7178]
[1645054312704,1.37690637,102.94,102.86,24.7178]
[1645054313497,112.62690637,102.95,102.86,24.7178]
[1645054313697,112.62690637,102.95,102.86,29.5758]
[1645054313897,117.48490637,102.95,102.86,24.7178]
[1645054314302,14.5812,102.94,102.86,24.7178]
[1645054314698,111.8412,102.94,102.86,24.7178]
[1645054314898,135.4252,102.94,102.84,22.5592]
[1645054315098,135.4252,102.94,102.85,0.25]
[1645054315698,38.1652,102.94,102.85,0.25]
[1645054316498,38.1652,102.94,102.85,5.109]
[1645054317501,43.0242,102.94,102.85,0.25]
[1645054318401,140.2842,102.94,102.85,0.25]
[1645054318702,38.1652,102.94,102.85,0.25]
[1645054319704,135.4252,102.94,102.85,0.25]
[1645054320103,38.1652,102.94,102.85,0.25]
[1645054320304,28.5727,102.93,102.85,0.25]
[1645054322810,14.583,102.92,102.85,0.25]
[1645054323012,39.46750637,102.96,102.85,232.16049889]
[1645054323211,24.1006,102.96,102.86,23.0001]
[1645054323408,24.1006,102.96,102.87,4.858]
[1645054323608,24.1006,102.96,102.87,7.06849889]
[1645054324310,13.99,102.98,102.88,2.21049889]
[1645054324611,13.99,102.98,102.88,25.68059889]
[1645054325012,13.99,102.98,102.89,2.21049889]
[1645054325413,28.5651,102.98,102.89,16.78559889]
[1645054327619,28.5651,102.98,102.89,21.64259889]
[1645054328623,28.5651,102.98,102.89,16.78559889]
[1645054329628,28.5651,102.98,102.89,21.64259889]
[1645054330329,25.5651,102.98,102.89,21.64259889]
[1645054330728,25.5651,102.98,102.9,2.21049889]
[1645054331631,26.94200637,102.98,102.89,19.4321]
[1645054331930,19.4338,102.97,102.88,23.4701]
[1645054332229,19.4338,102.97,102.89,2.21049889]
[1645054334235,19.4338,102.97,102.9,0.25]
[1645054334734,19.4338,102.97,102.9,2.46049889]
[1645054334933,19.4338,102.97,102.9,0.25]
[1645054335933,19.4338,102.97,102.88,40.25599889]
[1645054336131,24.9122,102.96,102.89,0.25]
[1645054340152,24.9122,102.96,102.88,40.25599889]
[1645054340455,44.3479,102.96,102.88,25.68059889]
[1645054340652,39.4899,102.96,102.88,23.4701]
[1645054341454,40.86680637,102.96,102.88,23.4701]
[1645054341658,45.72480637,102.96,102.88,23.4701]
[1645054341857,142.98480637,102.96,102.88,23.4701]
[1645054345361,40.86680637,102.96,102.88,23.4701]
[1645054345761,24.9122,102.96,102.89,0.25]
[1645054346164,24.9122,102.96,102.89,2.46049889]
[1645054346361,14.5762,102.97,102.89,2.46049889]
[1645054346561,14.5762,102.97,102.89,7.31749889]
[1645054347160,29.94160637,102.98,102.89,21.89279889]
[1645054347361,23.8163,102.97,102.89,21.89279889]
[1645054348464,23.8163,102.97,102.89,17.03579889]
[1645054349267,23.8163,102.97,102.89,14.8253]
[1645054349268,135.6523,102.97,102.89,14.8253]
[1645054349474,38.3923,102.97,102.88,38.0468]
[1645054349667,44.62620637,102.97,102.88,38.0468]
[1645054350066,44.62620637,102.97,102.88,23.4701]
[1645054350266,141.88620637,102.97,102.88,23.4701]
[1645054350565,44.62620637,102.97,102.88,23.4701]
[1645054351568,39.76920637,102.97,102.88,23.4701]
[1645054352371,137.02920637,102.97,102.88,23.4701]
[1645054352566,1.37690637,102.96,102.88,23.4701]
[1645054352767,20.81210637,102.96,102.88,23.4701]
[1645054354071,1.37690637,102.95,102.88,23.4701]
[1645054354272,15.95670637,102.95,102.88,23.4701]
[1645054355591,14.5798,102.95,102.88,23.4701]
[1645054357973,15.95400637,102.96,102.88,23.4701]
[1645054358177,1.37690637,102.96,102.89,0.25]
[1645054358473,1.37690637,102.98,102.89,21.66144623]
[1645054358674,1.37690637,102.98,102.9,2.21049889]
[1645054358874,1.37690637,102.99,102.9,2.21049889]
[1645054359374,1.37690637,102.98,102.9,39.80299889]
[1645054361774,40.08630637,102.99,102.9,39.80299889]
[1645054362976,40.08630637,102.99,102.9,44.65899889]
[1645054363381,1.37690637,102.98,102.9,44.65899889]
[1645054363576,1.37690637,102.98,102.9,39.80299889]
[1645054364681,40.08630637,102.99,102.9,39.80299889]
[1645054366583,44.94230637,102.99,102.9,39.80299889]
[1645054367483,40.08630637,102.99,102.9,39.80299889]
[1645054373102,44.94230637,102.99,102.9,39.80299889]
[1645054374405,40.08630637,102.99,102.9,39.80299889]
[1645054375206,40.08630637,102.99,102.91,6.0]
[1645054375604,40.08630637,102.99,102.91,20.5717]
[1645054378306,40.08630637,102.99,102.91,14.5717]
[1645054380614,15.94970637,102.99,102.91,14.5717]
[1645054380812,1.37690637,102.99,102.91,14.5717]
[1645054381012,1.37690637,102.99,102.92,24.84]
[1645054381214,1.37690637,102.99,102.92,39.4098]
[1645054381413,1.37690637,103.0,102.92,39.4098]
[1645054381715,1.37690637,103.0,102.92,41.62029889]
[1645054383221,1.37690637,103.0,102.92,46.47629889]
[1645054383420,1.37690637,103.0,102.92,181.53774512]
[1645054383720,0.58007208,103.01,102.95,14.5637]
[1645054383926,0.58007208,103.01,102.96,4.855]
[1645054384718,0.58007208,103.01,102.96,28.5133]
[1645054384920,0.58007208,103.01,102.96,35.7613]
[1645054385319,0.58007208,103.01,102.97,14.5617]
[1645054385522,0.00165284,103.02,102.97,14.5617]
[1645054385722,1.37690637,103.04,102.98,111.25]
[1645054385923,1.37690637,103.08,102.98,150.58877294]
[1645054386119,1.37690637,103.08,103.0,97.26]
[1645054386323,1.37690637,103.09,103.02,14.5537]
[1645054386922,1.37690637,103.09,103.02,32.09759067]
[1645054387822,1.37690637,103.1,103.02,32.09759067]
[1645054388225,1.37690637,103.1,103.02,14.5537]
[1645054389026,21.45579315,103.11,103.02,14.5537]
[1645054389228,16.60479315,103.11,103.02,14.5537]
[1645054389424,4.851,103.1,103.01,28.5482]
[1645054389623,4.851,103.1,103.01,14.5582]
[1645054389624,6.22790637,103.1,103.01,14.5582]
[1645054390324,14.5586,103.09,103.01,14.5582]
[1645054391531,4.852,103.08,103.01,14.5582]
[1645054391932,19.4114,103.08,103.01,14.5582]
[1645054392131,14.5594,103.08,103.01,14.5582]
[1645054392434,14.5594,103.08,103.0,14.5597]
[1645054400969,15.93490637,103.1,103.01,2.21049889]
[1645054401167,14.558,103.1,103.02,19.4069]
[1645054401771,14.558,103.1,103.02,14.5559]
[1645054401971,26.60709315,103.11,103.02,14.5559]
[1645054402269,26.60709315,103.11,103.02,19.4069]
[1645054402469,2.04919315,103.11,103.02,39.16128945]
[1645054403372,2.04919315,103.11,103.02,34.31028945]
[1645054405074,2.04919315,103.11,103.02,14.5559]
[1645054405276,16.60439315,103.11,103.02,14.5559]
[1645054405675,1.37690637,103.1,103.02,14.5559]
[1645054406576,15.93350637,103.1,103.02,14.5559]
[1645054408681,1.37690637,103.09,103.02,14.5559]
[1645054408881,15.93410637,103.09,103.01,37.7021]
[1645054409279,1.37690637,103.08,103.01,23.1438]
[1645054410182,15.93650637,103.08,103.01,23.1438]
[1645054412687,1.37690637,103.07,103.01,23.1438]
[1645054414487,1.37690637,103.06,103.01,23.1438]
[1645054416088,1.37690637,103.05,103.0,14.5595]
[1645054416490,1.37690637,103.06,103.0,14.5595]
[1645054419594,1.37690637,103.05,103.0,14.5595]
[1645054421194,1.37690637,103.05,102.99,37.3493]
[1645054421598,1.37690637,103.05,102.99,22.7882]
[1645054421798,1.37690637,103.04,102.99,22.7882]
[1645054421997,1.37690637,103.05,102.99,22.7882]
[1645054422796,15.93970637,103.05,102.99,22.7882]
[1645054423415,1.37690637,103.04,102.99,22.7882]
[1645054424719,15.93970637,103.05,102.99,22.7882]